[Event "*** Qualifier 1: Titled Tuesday 3|2 Blitz"]
[Site "Chess.com"]
[Date "2017.04.04"]
[Round "4"]
[White "Ginger_GM"]
[Black "RichardLeyvaP"]
[Result "0-1"]
[WhiteElo "2467"]
[BlackElo "2371"]
[TimeControl "180+2"]
[EndTime "13:53:29 PDT"]
[Termination "RichardLeyvaP won by resignation"]

1. e4 {[%clk 0:03:02]} 1... e5 {[%clk 0:02:59.5]} 2. f4 {[%clk 0:03:02.2]} 2...
Nc6 {[%clk 0:02:58.6]} 3. Nf3 {[%clk 0:02:58.6]} 3... f5 {[%clk 0:02:59.5]} 4.
exf5 {[%clk 0:02:56.7]} 4... e4 {[%clk 0:03:00.8]} 5. Ne5 {[%clk 0:02:51.2]}
5... Nxe5 {[%clk 0:03:01.4]} 6. fxe5 {[%clk 0:02:51]} 6... Qe7 {[%clk
0:03:02.9]} 7. d4 {[%clk 0:02:42.6]} 7... exd3 {[%clk 0:03:02.4]} 8. Qh5+ {[%clk
0:02:22.8]} 8... Kd8 {[%clk 0:02:59.8]} 9. Bxd3 {[%clk 0:02:15.3]} 9... Qxe5+
{[%clk 0:03:00.4]} 10. Kd1 {[%clk 0:02:15.4]} 10... Nf6 {[%clk 0:03:00.4]} 11.
Qf3 {[%clk 0:02:14.5]} 11... d5 {[%clk 0:02:48.1]} 12. Nc3 {[%clk 0:02:08.9]}
12... Bd6 {[%clk 0:01:59.4]} 13. Re1 {[%clk 0:01:53.4]} 13... Qxh2 {[%clk
0:01:57.7]} 14. Nxd5 {[%clk 0:01:51]} 14... Nxd5 {[%clk 0:01:38.6]} 15. Qxd5
{[%clk 0:01:49.1]} 15... Qh5+ {[%clk 0:01:39.4]} 16. Be2 {[%clk 0:01:34.9]}
16... Qh4 {[%clk 0:01:03.3]} 17. g3 {[%clk 0:01:35.3]} 17... Qxg3 {[%clk
0:00:51]} 18. a4 {[%clk 0:01:32.9]} 18... c6 {[%clk 0:00:34.4]} 19. Bg5+ {[%clk
0:00:58.4]} 19... Kc7 {[%clk 0:00:32.4]} 20. Qf7+ {[%clk 0:00:58.6]} 20... Bd7
{[%clk 0:00:33.7]} 21. Be7 {[%clk 0:00:30.7]} 21... Bxe7 {[%clk 0:00:20.3]} 22.
Qxe7 {[%clk 0:00:31.9]} 22... Rhe8 {[%clk 0:00:21.1]} 23. Qc5 {[%clk 0:00:31.4]}
23... Rad8 {[%clk 0:00:20.6]} 24. Qa5+ {[%clk 0:00:17.2]} 24... Kb8 {[%clk
0:00:17.3]} 25. Bd3 {[%clk 0:00:17.2]} 25... Rxe1+ {[%clk 0:00:05.6]} 26. Qxe1
{[%clk 0:00:18.2]} 26... Qxe1+ {[%clk 0:00:06.7]} 27. Kxe1 {[%clk 0:00:20.1]}
27... Rf8 {[%clk 0:00:08.2]} 28. Kd2 {[%clk 0:00:19.7]} 28... Bxf5 {[%clk
0:00:09]} 29. Rg1 {[%clk 0:00:19.8]} 29... g6 {[%clk 0:00:09.9]} 30. Bc4 {[%clk
0:00:20.2]} 30... Kc7 {[%clk 0:00:10.5]} 31. Kc3 {[%clk 0:00:21.4]} 31... h5
{[%clk 0:00:11.5]} 32. b4 {[%clk 0:00:22.2]} 32... b6 {[%clk 0:00:12.7]} 33. Re1
{[%clk 0:00:23.3]} 33... Kd6 {[%clk 0:00:13]} 34. b5 {[%clk 0:00:23.2]} 34... c5
{[%clk 0:00:13]} 35. Rd1+ {[%clk 0:00:24]} 35... Kc7 {[%clk 0:00:14.1]} 36. Re1
{[%clk 0:00:24.7]} 36... Rd8 {[%clk 0:00:15.2]} 37. Re7+ {[%clk 0:00:23.8]}
37... Rd7 {[%clk 0:00:16.6]} 38. Re8 {[%clk 0:00:25.2]} 38... Kd6 {[%clk
0:00:18]} 39. a5 {[%clk 0:00:25.6]} 39... bxa5 {[%clk 0:00:15]} 40. Rc8 {[%clk
0:00:25.8]} 40... Rc7 {[%clk 0:00:14.1]} 41. Rd8+ {[%clk 0:00:26.9]} 41... Ke5
{[%clk 0:00:15.3]} 42. Rd5+ {[%clk 0:00:25.6]} 42... Kf4 {[%clk 0:00:15.7]} 43.
Rd6 {[%clk 0:00:26.4]} 43... h4 {[%clk 0:00:14.6]} 44. Bd5 {[%clk 0:00:27.4]}
44... h3 {[%clk 0:00:14.8]} 45. Rd8 {[%clk 0:00:27.8]} 45... g5 {[%clk
0:00:14.7]} 46. Rf8 {[%clk 0:00:27.9]} 46... Re7 {[%clk 0:00:14.1]} 47. Kc4
{[%clk 0:00:27.8]} 47... g4 {[%clk 0:00:14.9]} 48. Kxc5 {[%clk 0:00:28.6]} 48...
g3 {[%clk 0:00:16.3]} 49. Kd6 {[%clk 0:00:29.7]} 49... Re5 {[%clk 0:00:15.8]}
50. c4 {[%clk 0:00:27.5]} 50... g2 {[%clk 0:00:16.5]} 51. Rg8 {[%clk 0:00:28.4]}
51... Rxd5+ {[%clk 0:00:14.5]} 52. cxd5 {[%clk 0:00:28.2]} 52... Bg4 {[%clk
0:00:15.5]} 53. Rf8+ {[%clk 0:00:28.4]} 53... Kg3 {[%clk 0:00:16.8]} 54. Ke7
{[%clk 0:00:28.5]} 54... g1=Q {[%clk 0:00:17.7]} 55. d6 {[%clk 0:00:28.7]} 55...
Qe3+ {[%clk 0:00:17.1]} 56. Kd8 {[%clk 0:00:29.3]} 56... Qc5 {[%clk 0:00:17.1]}
57. Rf6 {[%clk 0:00:28.8]} 57... Qxb5 {[%clk 0:00:17.9]} 58. Rf7 {[%clk
0:00:28.4]} 58... Qc6 {[%clk 0:00:18.6]} 59. d7 {[%clk 0:00:28.1]} 59... Qxd7+
{[%clk 0:00:18.7]} 60. Rxd7 {[%clk 0:00:28.6]} 60... Bxd7 {[%clk 0:00:20.6]} 0-1

[Event "*** Qualifier 1: Titled Tuesday 3|2 Blitz"]
[Site "Chess.com"]
[Date "2017.04.04"]
[Round "4"]
[White "GamayevOleg"]
[Black "VerdeNotte"]
[Result "1-0"]
[WhiteElo "2417"]
[BlackElo "2557"]
[TimeControl "180+2"]
[EndTime "13:53:35 PDT"]
[Termination "GamayevOleg won on time"]

1. f4 {[%clk 0:03:00.6]} 1... g6 {[%clk 0:02:59.7]} 2. d3 {[%clk 0:02:59.2]}
2... Bg7 {[%clk 0:03:00.3]} 3. e4 {[%clk 0:03:00.2]} 3... d5 {[%clk 0:03:00.8]}
4. Nf3 {[%clk 0:02:56.4]} 4... dxe4 {[%clk 0:03:01.6]} 5. dxe4 {[%clk
0:02:58.3]} 5... Qxd1+ {[%clk 0:03:02.7]} 6. Kxd1 {[%clk 0:03:00.2]} 6... Bg4
{[%clk 0:03:00.3]} 7. Be2 {[%clk 0:03:00.8]} 7... Nc6 {[%clk 0:02:58.4]} 8. c3
{[%clk 0:03:01.6]} 8... O-O-O+ {[%clk 0:02:56.1]} 9. Nfd2 {[%clk 0:03:03.5]}
9... Nf6 {[%clk 0:02:49.4]} 10. Bxg4+ {[%clk 0:02:54.1]} 10... Nxg4 {[%clk
0:02:51.3]} 11. Ke2 {[%clk 0:02:55.9]} 11... e5 {[%clk 0:02:47.9]} 12. f5 {[%clk
0:02:36.2]} 12... gxf5 {[%clk 0:02:44.9]} 13. exf5 {[%clk 0:02:37.4]} 13... e4
{[%clk 0:02:46.2]} 14. h3 {[%clk 0:02:37.2]} 14... Nf6 {[%clk 0:02:46]} 15. Nc4
{[%clk 0:02:31.9]} 15... Nh5 {[%clk 0:02:27.8]} 16. Kf2 {[%clk 0:02:21]} 16...
Bf6 {[%clk 0:02:28.4]} 17. g4 {[%clk 0:02:18.2]} 17... Bh4+ {[%clk 0:02:29.4]}
18. Kg2 {[%clk 0:02:19.7]} 18... Ng3 {[%clk 0:02:29.1]} 19. Re1 {[%clk
0:01:50.2]} 19... Nxf5 {[%clk 0:02:29.3]} 20. Rxe4 {[%clk 0:01:50.4]} 20... Rd1
{[%clk 0:02:21.3]} 21. Nbd2 {[%clk 0:01:47.8]} 21... Nd6 {[%clk 0:02:10.7]} 22.
Nxd6+ {[%clk 0:01:44.3]} 22... cxd6 {[%clk 0:02:12.6]} 23. Nb3 {[%clk
0:01:43.6]} 23... d5 {[%clk 0:02:12.1]} 24. Re2 {[%clk 0:01:42.8]} 24... f5
{[%clk 0:01:42.8]} 25. Be3 {[%clk 0:01:42.1]} 25... Rxa1 {[%clk 0:01:43.2]} 26.
Nxa1 {[%clk 0:01:43.6]} 26... fxg4 {[%clk 0:01:39.1]} 27. hxg4 {[%clk
0:01:44.2]} 27... Re8 {[%clk 0:01:35.4]} 28. Kf1 {[%clk 0:01:42.7]} 28... Ne5
{[%clk 0:01:26.4]} 29. Bd4 {[%clk 0:01:18.4]} 29... Rf8+ {[%clk 0:01:27.1]} 30.
Kg2 {[%clk 0:01:19.7]} 30... Ng6 {[%clk 0:01:09.1]} 31. Be3 {[%clk 0:01:08.7]}
31... Nf4+ {[%clk 0:00:56.3]} 32. Bxf4 {[%clk 0:01:09.5]} 32... Rxf4 {[%clk
0:00:58.2]} 33. Kh3 {[%clk 0:01:00.7]} 33... Bf6 {[%clk 0:00:56.9]} 34. Nc2
{[%clk 0:00:51]} 34... Kd7 {[%clk 0:00:56.3]} 35. Kg3 {[%clk 0:00:52.1]} 35...
Ra4 {[%clk 0:00:50.9]} 36. a3 {[%clk 0:00:45.7]} 36... Bg5 {[%clk 0:00:41.4]}
37. Nd4 {[%clk 0:00:40.8]} 37... Bf6 {[%clk 0:00:41.5]} 38. Nf3 {[%clk
0:00:34.8]} 38... Kd6 {[%clk 0:00:38.7]} 39. Rh2 {[%clk 0:00:33.4]} 39... d4
{[%clk 0:00:31.3]} 40. Rh6 {[%clk 0:00:26.7]} 40... dxc3 {[%clk 0:00:28.9]} 41.
bxc3 {[%clk 0:00:23]} 41... Ke7 {[%clk 0:00:25.4]} 42. Rxh7+ {[%clk 0:00:24.1]}
42... Kf8 {[%clk 0:00:26.7]} 43. Rxb7 {[%clk 0:00:24.5]} 43... Rxa3 {[%clk
0:00:25.1]} 44. g5 {[%clk 0:00:24]} 44... Bxc3 {[%clk 0:00:24.6]} 45. Kg4 {[%clk
0:00:25.2]} 45... Bg7 {[%clk 0:00:15.3]} 46. Nh4 {[%clk 0:00:21.3]} 46... Ra1
{[%clk 0:00:09.9]} 47. Nf5 {[%clk 0:00:19.8]} 47... Be5 {[%clk 0:00:09.4]} 48.
Kh5 {[%clk 0:00:20.2]} 48... a5 {[%clk 0:00:05]} 49. Kg6 {[%clk 0:00:20.2]}
49... Bf4 {[%clk 0:00:03]} 50. Ra7 {[%clk 0:00:18]} 50... Rb1 {[%clk 0:00:03]}
51. Kh5 {[%clk 0:00:11.2]} 1-0

[Event "*** Qualifier 1: Titled Tuesday 3|2 Blitz"]
[Site "Chess.com"]
[Date "2017.04.04"]
[Round "4"]
[White "nonscitis"]
[Black "Rock700chess"]
[Result "1/2-1/2"]
[WhiteElo "2352"]
[BlackElo "2205"]
[TimeControl "180+2"]
[EndTime "13:53:48 PDT"]
[Termination "Game drawn by repetition"]

1. e4 {[%clk 0:03:02]} 1... e6 {[%clk 0:02:58.5]} 2. d4 {[%clk 0:03:00.4]} 2...
d5 {[%clk 0:03:00.4]} 3. Nd2 {[%clk 0:02:59.4]} 3... Nf6 {[%clk 0:03:01.6]} 4.
e5 {[%clk 0:02:56.5]} 4... Nfd7 {[%clk 0:03:02.6]} 5. Bd3 {[%clk 0:02:57.9]}
5... c5 {[%clk 0:03:01.6]} 6. c3 {[%clk 0:02:57.1]} 6... Nc6 {[%clk 0:03:02.4]}
7. Ne2 {[%clk 0:02:57.5]} 7... Be7 {[%clk 0:03:01.8]} 8. O-O {[%clk 0:02:57.3]}
8... O-O {[%clk 0:03:00.7]} 9. Nf3 {[%clk 0:02:57.6]} 9... f6 {[%clk 0:02:58.1]}
10. exf6 {[%clk 0:02:55.1]} 10... Nxf6 {[%clk 0:03:00]} 11. h3 {[%clk
0:02:55.7]} 11... Qc7 {[%clk 0:02:52.4]} 12. Be3 {[%clk 0:02:50.7]} 12... e5
{[%clk 0:02:49.1]} 13. dxe5 {[%clk 0:02:44.1]} 13... Nxe5 {[%clk 0:02:51]} 14.
Nxe5 {[%clk 0:02:44.6]} 14... Qxe5 {[%clk 0:02:52.9]} 15. Bf4 {[%clk 0:02:44.4]}
15... Qe6 {[%clk 0:02:45.5]} 16. Re1 {[%clk 0:02:24]} 16... Ne4 {[%clk
0:02:40.1]} 17. f3 {[%clk 0:02:24.6]} 17... Nf6 {[%clk 0:02:36.4]} 18. Nd4
{[%clk 0:02:13.6]} 18... Qf7 {[%clk 0:02:29.3]} 19. Nf5 {[%clk 0:02:13.3]} 19...
Re8 {[%clk 0:02:16.8]} 20. Bg5 {[%clk 0:01:48]} 20... Bxf5 {[%clk 0:02:09]} 21.
Bxf5 {[%clk 0:01:47.8]} 21... Bd6 {[%clk 0:02:10.6]} 22. Qd2 {[%clk 0:01:23.5]}
22... h6 {[%clk 0:02:06.5]} 23. Be3 {[%clk 0:00:43]} 23... Bg3 {[%clk 0:02:02]}
24. Bf2 {[%clk 0:00:33.6]} 24... Bxf2+ {[%clk 0:02:03.3]} 25. Qxf2 {[%clk
0:00:35]} 25... b6 {[%clk 0:02:01.3]} 26. Rad1 {[%clk 0:00:24.7]} 26... Rad8
{[%clk 0:01:56.6]} 27. Bc2 {[%clk 0:00:21.4]} 27... a6 {[%clk 0:01:50.4]} 28.
Bb3 {[%clk 0:00:20.6]} 28... c4 {[%clk 0:01:46.5]} 29. Bc2 {[%clk 0:00:21.3]}
29... b5 {[%clk 0:01:46.7]} 30. Qd4 {[%clk 0:00:20.9]} 30... Qb7 {[%clk
0:01:38.5]} 31. Kf2 {[%clk 0:00:20.9]} 31... Kf7 {[%clk 0:01:34.3]} 32. Rxe8
{[%clk 0:00:19.9]} 32... Rxe8 {[%clk 0:01:33]} 33. Re1 {[%clk 0:00:20.2]} 33...
Rxe1 {[%clk 0:01:32.6]} 34. Kxe1 {[%clk 0:00:22.1]} 34... a5 {[%clk 0:01:31.3]}
35. a3 {[%clk 0:00:22.3]} 35... b4 {[%clk 0:01:31]} 36. axb4 {[%clk 0:00:22.8]}
36... axb4 {[%clk 0:01:32.9]} 37. Kf2 {[%clk 0:00:23.5]} 37... bxc3 {[%clk
0:01:27.2]} 38. bxc3 {[%clk 0:00:24.1]} 38... Qb2 {[%clk 0:01:24.4]} 39. Qd2
{[%clk 0:00:24.9]} 39... Qb6+ {[%clk 0:01:13.9]} 40. Kf1 {[%clk 0:00:24.2]}
40... Qd6 {[%clk 0:01:12.5]} 41. Qd4 {[%clk 0:00:23.5]} 41... Ke6 {[%clk
0:00:26.3]} 42. Kf2 {[%clk 0:00:23.9]} 42... Qe5 {[%clk 0:00:25.7]} 43. Qb6+
{[%clk 0:00:21.3]} 43... Kd7 {[%clk 0:00:26]} 44. Qb7+ {[%clk 0:00:20.4]} 44...
Ke6 {[%clk 0:00:25.6]} 45. Qc8+ {[%clk 0:00:19]} 45... Kd6 {[%clk 0:00:25.1]}
46. Qb8+ {[%clk 0:00:19.6]} 46... Ke6 {[%clk 0:00:24.7]} 47. Qc8+ {[%clk
0:00:18]} 47... Kd6 {[%clk 0:00:24.2]} 48. Qf8+ {[%clk 0:00:17.9]} 48... Ke6
{[%clk 0:00:23.2]} 49. Qb4 {[%clk 0:00:10.7]} 49... Qc7 {[%clk 0:00:20.5]} 50.
Qa4 {[%clk 0:00:10.2]} 50... Qc5+ {[%clk 0:00:18.4]} 51. Kf1 {[%clk 0:00:10.4]}
51... Qe3 {[%clk 0:00:18.7]} 52. Qc6+ {[%clk 0:00:09.6]} 52... Kf7 {[%clk
0:00:18.4]} 53. Qc7+ {[%clk 0:00:10]} 53... Ke6 {[%clk 0:00:18.7]} 54. Qc8+
{[%clk 0:00:10.3]} 54... Ke5 {[%clk 0:00:18.7]} 55. Qc7+ {[%clk 0:00:10.9]}
55... Ke6 {[%clk 0:00:18.7]} 56. Qc8+ {[%clk 0:00:11.6]} 56... Kd6 {[%clk
0:00:18.1]} 57. Qd8+ {[%clk 0:00:11.6]} 57... Ke6 {[%clk 0:00:18.3]} 58. Qc8+
{[%clk 0:00:11.9]} 58... Ke5 {[%clk 0:00:18.3]} 59. Qc7+ {[%clk 0:00:11.6]}
59... Ke6 {[%clk 0:00:18.4]} 60. Qc8+ {[%clk 0:00:12.1]} 60... Ke5 {[%clk
0:00:18.2]} 61. Qb8+ {[%clk 0:00:11.7]} 61... Ke6 {[%clk 0:00:18.7]} 62. Qc8+
{[%clk 0:00:08.2]} 1/2-1/2

[Event "*** Qualifier 1: Titled Tuesday 3|2 Blitz"]
[Site "Chess.com"]
[Date "2017.04.04"]
[Round "4"]
[White "TheLancer"]
[Black "severomorskij"]
[Result "0-1"]
[WhiteElo "2462"]
[BlackElo "2640"]
[TimeControl "180+2"]
[EndTime "13:53:55 PDT"]
[Termination "severomorskij won by resignation"]

1. e4 {[%clk 0:03:02]} 1... c5 {[%clk 0:03:00]} 2. Nc3 {[%clk 0:03:03.3]} 2...
e6 {[%clk 0:02:58.9]} 3. f4 {[%clk 0:03:04.2]} 3... a6 {[%clk 0:02:55.8]} 4. a4
{[%clk 0:02:55.9]} 4... d5 {[%clk 0:02:56]} 5. Nf3 {[%clk 0:02:53.5]} 5... Nc6
{[%clk 0:02:54.6]} 6. g3 {[%clk 0:02:50.1]} 6... d4 {[%clk 0:02:46.8]} 7. Nb1
{[%clk 0:02:45.1]} 7... Nf6 {[%clk 0:02:35.2]} 8. d3 {[%clk 0:02:40.6]} 8... c4
{[%clk 0:02:21.7]} 9. Bg2 {[%clk 0:02:18.7]} 9... Bb4+ {[%clk 0:02:10.9]} 10.
Nfd2 {[%clk 0:01:52.5]} 10... cxd3 {[%clk 0:01:31.7]} 11. cxd3 {[%clk
0:01:54.4]} 11... e5 {[%clk 0:01:30.1]} 12. f5 {[%clk 0:01:48.1]} 12... Nd7
{[%clk 0:01:03.4]} 13. O-O {[%clk 0:01:41.6]} 13... Rb8 {[%clk 0:00:46]} 14. Nc4
{[%clk 0:00:58.6]} 14... b5 {[%clk 0:00:45.3]} 15. axb5 {[%clk 0:00:59.2]} 15...
axb5 {[%clk 0:00:47.2]} 16. Nca3 {[%clk 0:01:00.8]} 16... O-O {[%clk 0:00:42]}
17. g4 {[%clk 0:00:35.6]} 17... Be7 {[%clk 0:00:42.5]} 18. Nd2 {[%clk
0:00:34.4]} 18... Nc5 {[%clk 0:00:37.4]} 19. Nf3 {[%clk 0:00:33.2]} 19... f6
{[%clk 0:00:30.7]} 20. h4 {[%clk 0:00:26.7]} 20... Nb4 {[%clk 0:00:22.7]} 21.
Ne1 {[%clk 0:00:27.2]} 21... Kh8 {[%clk 0:00:22.7]} 22. Nac2 {[%clk 0:00:23]}
22... Nxc2 {[%clk 0:00:18.3]} 23. Qxc2 {[%clk 0:00:24.9]} 23... Bd7 {[%clk
0:00:18.7]} 24. b4 {[%clk 0:00:21.2]} 24... Na4 {[%clk 0:00:19.2]} 25. Bd2
{[%clk 0:00:21.8]} 25... Rc8 {[%clk 0:00:19.6]} 26. Qd1 {[%clk 0:00:23]} 26...
Nc3 {[%clk 0:00:20.6]} 27. Qf3 {[%clk 0:00:24.4]} 27... Bxb4 {[%clk 0:00:21.1]}
28. Kh1 {[%clk 0:00:25]} 28... Nd5 {[%clk 0:00:19.5]} 29. Bxb4 {[%clk
0:00:20.9]} 29... Nxb4 {[%clk 0:00:20.4]} 30. Ra7 {[%clk 0:00:20.3]} 30... Nc6
{[%clk 0:00:18.2]} 31. Rb7 {[%clk 0:00:21.2]} 31... Na5 {[%clk 0:00:18.3]} 32.
Ra7 {[%clk 0:00:22.4]} 32... Nc6 {[%clk 0:00:19.5]} 33. Rb7 {[%clk 0:00:23.7]}
33... Rb8 {[%clk 0:00:18.4]} 34. Rxb8 {[%clk 0:00:24.8]} 34... Nxb8 {[%clk
0:00:19.7]} 35. Bh3 {[%clk 0:00:23.6]} 35... Nc6 {[%clk 0:00:20.3]} 36. Rg1
{[%clk 0:00:24.5]} 36... b4 {[%clk 0:00:18.1]} 37. g5 {[%clk 0:00:25.9]} 37...
b3 {[%clk 0:00:17.7]} 38. Qe2 {[%clk 0:00:20.4]} 38... Qe7 {[%clk 0:00:17.2]}
39. Qb2 {[%clk 0:00:20.7]} 39... Rb8 {[%clk 0:00:18]} 40. gxf6 {[%clk
0:00:18.1]} 40... Qxf6 {[%clk 0:00:15.6]} 41. Nf3 {[%clk 0:00:19.5]} 41... h6
{[%clk 0:00:16]} 42. Rg6 {[%clk 0:00:20.4]} 42... Qf8 {[%clk 0:00:15.6]} 43. f6
{[%clk 0:00:20.3]} 43... gxf6 {[%clk 0:00:14.6]} 44. Bxd7 {[%clk 0:00:21.3]}
44... Qf7 {[%clk 0:00:14.7]} 45. Bf5 {[%clk 0:00:21.9]} 45... Ne7 {[%clk
0:00:09.5]} 46. Rxh6+ {[%clk 0:00:22.5]} 46... Kg8 {[%clk 0:00:11]} 47. Qg2+
{[%clk 0:00:21.8]} 47... Qg7 {[%clk 0:00:10.4]} 48. Be6+ {[%clk 0:00:19.1]}
48... Kf8 {[%clk 0:00:10.8]} 49. Rh5 {[%clk 0:00:17]} 49... b2 {[%clk
0:00:06.3]} 50. Nd2 {[%clk 0:00:17.9]} 50... b1=Q+ {[%clk 0:00:06.4]} 51. Nxb1
{[%clk 0:00:18.5]} 51... Rxb1+ {[%clk 0:00:07.9]} 52. Kh2 {[%clk 0:00:20.1]}
52... Qxg2+ {[%clk 0:00:09]} 53. Kxg2 {[%clk 0:00:22]} 53... Ng6 {[%clk
0:00:10.4]} 54. Kf3 {[%clk 0:00:16.8]} 54... Nf4 {[%clk 0:00:11.3]} 55. Rh8+
{[%clk 0:00:17.9]} 55... Kg7 {[%clk 0:00:10.6]} 56. Rg8+ {[%clk 0:00:19.1]}
56... Kh7 {[%clk 0:00:11.9]} 57. Bc4 {[%clk 0:00:20.6]} 57... Rf1+ {[%clk
0:00:11.1]} 58. Kg4 {[%clk 0:00:19.7]} 58... Rg1+ {[%clk 0:00:12.2]} 59. Kf5
{[%clk 0:00:21.2]} 59... Rxg8 {[%clk 0:00:13.7]} 60. Bxg8+ {[%clk 0:00:22.3]}
60... Kxg8 {[%clk 0:00:14.9]} 61. Kxf6 {[%clk 0:00:23.5]} 61... Nxd3 {[%clk
0:00:16.1]} 62. h5 {[%clk 0:00:24.9]} 62... Nf2 {[%clk 0:00:16.6]} 63. Kxe5
{[%clk 0:00:26.8]} 63... d3 {[%clk 0:00:17.8]} 0-1

[Event "*** Qualifier 1: Titled Tuesday 3|2 Blitz"]
[Site "Chess.com"]
[Date "2017.04.04"]
[Round "4"]
[White "AnkitGajwa"]
[Black "Bengalas"]
[Result "0-1"]
[WhiteElo "1732"]
[BlackElo "2283"]
[TimeControl "180+2"]
[EndTime "13:54:00 PDT"]
[Termination "Bengalas won by resignation"]

1. e4 {[%clk 0:02:55.3]} 1... c5 {[%clk 0:03:00.2]} 2. Nf3 {[%clk 0:02:48.8]}
2... e6 {[%clk 0:03:01.2]} 3. d4 {[%clk 0:02:49.1]} 3... cxd4 {[%clk 0:03:02.4]}
4. Nxd4 {[%clk 0:02:50.6]} 4... Nc6 {[%clk 0:03:03.6]} 5. Nc3 {[%clk 0:02:50.7]}
5... Qc7 {[%clk 0:03:04]} 6. Be3 {[%clk 0:02:49.8]} 6... a6 {[%clk 0:03:04.7]}
7. Qf3 {[%clk 0:02:50.5]} 7... Nf6 {[%clk 0:02:50]} 8. O-O-O {[%clk 0:02:47.5]}
8... Nxd4 {[%clk 0:02:50.7]} 9. Bxd4 {[%clk 0:02:48]} 9... Bd6 {[%clk
0:02:51.5]} 10. Kb1 {[%clk 0:02:23.6]} 10... Be5 {[%clk 0:02:51.6]} 11. Bxe5
{[%clk 0:02:23.9]} 11... Qxe5 {[%clk 0:02:52.2]} 12. Qg3 {[%clk 0:02:25.1]}
12... Qxg3 {[%clk 0:02:45.9]} 13. hxg3 {[%clk 0:02:25.8]} 13... Ke7 {[%clk
0:02:42.8]} 14. f3 {[%clk 0:02:18.8]} 14... d6 {[%clk 0:02:43]} 15. g4 {[%clk
0:02:18.9]} 15... g5 {[%clk 0:02:26.7]} 16. Rh6 {[%clk 0:02:12.7]} 16... Rg8
{[%clk 0:02:18.4]} 17. Bd3 {[%clk 0:01:57.5]} 17... Rg6 {[%clk 0:02:13.6]} 18.
Rh2 {[%clk 0:01:56.7]} 18... Rg8 {[%clk 0:02:09.3]} 19. Rdh1 {[%clk 0:01:54.8]}
19... Bd7 {[%clk 0:02:08.6]} 20. e5 {[%clk 0:01:52]} 20... dxe5 {[%clk
0:02:09.4]} 21. Ne4 {[%clk 0:01:52.9]} 21... Nd5 {[%clk 0:01:52.2]} 22. g3
{[%clk 0:01:42.8]} 22... Bc6 {[%clk 0:01:30]} 23. a3 {[%clk 0:01:38.4]} 23...
Nf6 {[%clk 0:01:29.6]} 24. Nxf6 {[%clk 0:01:19.1]} 24... Kxf6 {[%clk 0:01:30.6]}
25. Be4 {[%clk 0:01:19.7]} 25... Bxe4 {[%clk 0:01:30.8]} 26. fxe4 {[%clk
0:01:20.5]} 26... Rg7 {[%clk 0:01:14.8]} 27. Rxh7 {[%clk 0:01:15.5]} 27... Rxh7
{[%clk 0:01:15.3]} 28. Rxh7 {[%clk 0:01:15.5]} 28... Rd8 {[%clk 0:01:16.2]} 29.
Rh6+ {[%clk 0:01:05.1]} 29... Ke7 {[%clk 0:01:11.7]} 30. Rh1 {[%clk 0:00:57.7]}
30... Rd2 {[%clk 0:01:09.1]} 31. Re1 {[%clk 0:00:57.1]} 31... Rf2 {[%clk
0:01:03.1]} 32. Re3 {[%clk 0:00:55.9]} 32... b5 {[%clk 0:00:59.8]} 33. b4 {[%clk
0:00:48.3]} 33... Kd6 {[%clk 0:00:58.1]} 34. Kb2 {[%clk 0:00:48.8]} 34... f5
{[%clk 0:00:50.7]} 35. gxf5 {[%clk 0:00:48.8]} 35... exf5 {[%clk 0:00:51.4]} 36.
exf5 {[%clk 0:00:49.7]} 36... Rxf5 {[%clk 0:00:52.4]} 37. Kb3 {[%clk 0:00:49.2]}
37... g4 {[%clk 0:00:52.2]} 38. Kc3 {[%clk 0:00:46.5]} 38... Kd5 {[%clk
0:00:42.6]} 39. Kd3 {[%clk 0:00:43.2]} 39... Rf3 {[%clk 0:00:43]} 40. Ke2 {[%clk
0:00:43.3]} 40... e4 {[%clk 0:00:43.2]} 41. Kd2 {[%clk 0:00:33.2]} 41... Kd4
{[%clk 0:00:41]} 42. c3+ {[%clk 0:00:29.1]} 42... Kd5 {[%clk 0:00:40.8]} 43. Ke2
{[%clk 0:00:28.7]} 43... Ke5 {[%clk 0:00:41.1]} 44. Kd2 {[%clk 0:00:28.9]} 44...
Rf2+ {[%clk 0:00:42.2]} 45. Re2 {[%clk 0:00:28.9]} 45... Rf3 {[%clk 0:00:38.8]}
46. Rh2 {[%clk 0:00:29.3]} 46... Rxg3 {[%clk 0:00:39]} 47. Rh6 {[%clk
0:00:28.9]} 47... Rd3+ {[%clk 0:00:35.9]} 48. Ke2 {[%clk 0:00:28.6]} 48... Rd6
{[%clk 0:00:34.3]} 49. Rh5+ {[%clk 0:00:28.6]} 49... Kf4 {[%clk 0:00:35.5]} 50.
Rc5 {[%clk 0:00:27.8]} 50... g3 {[%clk 0:00:33.2]} 51. c4 {[%clk 0:00:28.7]}
51... Rh6 {[%clk 0:00:33]} 52. cxb5 {[%clk 0:00:29]} 52... Rh2+ {[%clk
0:00:33.6]} 53. Kf1 {[%clk 0:00:29.3]} 53... axb5 {[%clk 0:00:34.8]} 54. Rxb5
{[%clk 0:00:30]} 54... e3 {[%clk 0:00:35.3]} 55. Rb8 {[%clk 0:00:25.9]} 55...
Rf2+ {[%clk 0:00:35.8]} 56. Ke1 {[%clk 0:00:20.9]} 56... g2 {[%clk 0:00:36]} 57.
Rf8+ {[%clk 0:00:22.1]} 57... Ke4 {[%clk 0:00:34.2]} 58. Rxf2 {[%clk 0:00:21.9]}
58... g1=Q+ {[%clk 0:00:34.3]} 59. Rf1 {[%clk 0:00:22.1]} 59... Qg2 {[%clk
0:00:35]} 0-1